fUST/lending_fUST_20250602
["ID","MTS","AMOUNT","RATE_DAILY","PERIOD"]
[363707465,1748831443085,-377.75069341,0.000189,2]
[363707466,1748831443094,-895.82036945,0.00019072,2]
[363707467,1748831443102,-895.82036945,0.00019245,2]
[363707468,1748831443111,-811.72693695,0.00019417,2]
[363707471,1748831443126,-84.0934325,0.00019417,2]
[363707472,1748831443135,-895.82036945,0.0001959,2]
[363707474,1748831443143,-111638.41484093,0.00023561,2]
[363707478,1748831443423,-895.82036945,0.00019762,2]
[363707479,1748831443433,-895.82036945,0.00019934,2]
[363707480,1748831443443,-895.82036945,0.00020107,2]
[363707481,1748831443452,-895.82036945,0.00020279,3]
[363707482,1748831443462,-895.82036945,0.00020452,3]
[363707483,1748831443471,-895.82036945,0.00020624,3]
[363707484,1748831443480,-895.82036945,0.00020797,4]
[363707485,1748831443490,-895.82036945,0.00020969,4]
[363707486,1748831443499,-895.82036945,0.00021141,4]
[363707487,1748831443509,-59471.54515095,0.00023561,2]
[363707494,1748831446656,-895.82036945,0.00021314,5]
[363707495,1748831446666,-895.82036945,0.00021486,5]
[363707496,1748831446676,-895.82036945,0.00021659,5]
[363707497,1748831446685,-895.82036945,0.00021831,6]
[363707499,1748831446695,-895.82036945,0.00022003,6]
[363707500,1748831446704,-895.82036945,0.00022176,6]
[363707501,1748831446714,-895.82036945,0.00022348,7]
[363707502,1748831446724,-895.82036945,0.00022521,7]
[363707503,1748831446735,-895.82036945,0.00022693,7]
[363707504,1748831446745,-895.82036945,0.00022866,8]
[363707505,1748831446754,-895.82036945,0.00023038,8]
[363707506,1748831446763,-895.82036945,0.0002321,8]
[363707507,1748831446773,-6858.03989791,0.00023561,2]
[363707510,1748831609996,201.104444,0.00013699,2]
[363707518,1748831821478,-458.22582943,0.00017168,2]
[363707521,1748832200034,-5000.0,0.00016826,2]
[363707522,1748832200059,-255.1106299,0.00017341,2]
[363707523,1748832200086,-215.54827371,0.000179,2]
[363707524,1748832200110,-300.0,0.00017995,2]
[363707525,1748832200132,-500.0,0.00017996,2]
[363707526,1748832200155,-500.0,0.00017996,2]
[363707527,1748832200182,-500.0,0.00017996,2]
[363707528,1748832200205,-165.67023204,0.00017996,2]
[363707529,1748832200227,-500.0,0.00017996,2]
[363707530,1748832200252,-210.41190942,0.00017996,2]
[363707531,1748832200275,-500.0,0.00017996,2]
[363707532,1748832200298,-500.0,0.00017996,2]
[363707533,1748832200323,-500.0,0.00017996,2]
[363707534,1748832200346,-154.9918811,0.00017996,2]
[363707535,1748832200369,-500.0,0.00017996,2]
[363707536,1748832200391,-397.54175987,0.00017996,2]
[363707537,1748832200415,-500.0,0.00017996,2]
[363707538,1748832200438,-500.0,0.00017996,2]
[363707539,1748832200461,-500.06266419,0.00017996,2]
[363707540,1748832200488,-1200.0,0.00017996,2]
[363707541,1748832200512,-300.0,0.00017996,2]
[363707542,1748832200534,-1700.66264977,0.00017997,2]
[363707543,1748832232800,-5000.0,0.00017817,2]
[363707544,1748832232821,-205.22215091,0.00017897,2]
[363707545,1748832232841,-1794.77784909,0.00017997,2]
[363707549,1748832586261,199.979597,0.00013699,2]
[363707585,1748832632594,-5000.0,0.00017541,2]
[363707587,1748832632604,-150.82860097,0.00017896,2]
[363707589,1748832632614,-300.0,0.00017995,2]
[363707591,1748832632624,-155.28241776,0.00017995,2]
[363707593,1748832632633,-245.60132327,0.00017995,2]
[363707595,1748832632643,-300.0,0.00017995,2]
[363707597,1748832632654,-572.78165116,0.00017996,2]
[363707600,1748832632666,-752.36503446,0.00017996,2]
[363707615,1748832632807,-21008.63747589,0.00017996,2]
[363707617,1748832632818,-488.65711424,0.00017996,2]
[363707619,1748832632828,-452.91975554,0.00017996,2]
[363707621,1748832632838,-453.59088524,0.00017996,2]
[363707623,1748832632848,-435.10308699,0.00017996,2]
[363707625,1748832632858,-430.0,0.00017996,2]
[363707626,1748832632875,-430.0,0.00017996,2]
[363707627,1748832632893,-272.63508112,0.00017996,2]
[363707629,1748832632903,-430.0,0.00017996,2]
[363707630,1748832632914,-458.94525243,0.00017996,2]
[363707631,1748832632924,-467.8330199,0.00017996,2]
[363707632,1748832632934,-435.50877404,0.00017996,2]
[363707633,1748832632944,-434.01313213,0.00017996,2]
[363707634,1748832632954,-430.0,0.00017996,2]
[363707636,1748832632968,-430.0,0.00017996,2]
[363707638,1748832632978,-447.50053804,0.00017996,2]
[363707639,1748832632989,-430.0,0.00017996,2]
[363707640,1748832632999,-430.0,0.00017996,2]
[363707641,1748832633009,-430.0,0.00017996,2]
[363707642,1748832633018,-507.16228523,0.00017996,2]
[363707643,1748832633028,-430.0,0.00017996,2]
[363707644,1748832633038,-430.0,0.00017996,2]
[363707645,1748832633048,-430.0,0.00017996,2]
[363707646,1748832633058,-430.0,0.00017996,2]
[363707647,1748832633069,-430.0,0.00017996,2]
[363707648,1748832633080,-440.1709338,0.00017996,2]
[363707649,1748832633091,-430.0,0.00017996,2]
[363707650,1748832633101,-430.0,0.00017996,2]
[363707651,1748832633111,-451.64274468,0.00017996,2]
[363707652,1748832633122,-430.0,0.00017996,2]
[363707653,1748832633132,-430.0,0.00017996,2]
[363707654,1748832633142,-430.0,0.00017996,2]
[363707655,1748832633151,-447.22657306,0.00017996,2]
[363707656,1748832633160,-430.0,0.00017996,2]
[363707657,1748832633170,-430.0,0.00017996,2]
[363707658,1748832633180,-430.0,0.00017996,2]
[363707659,1748832633190,-430.0,0.00017996,2]
[363707660,1748832633201,-458.2091639,0.00017996,2]
[363707661,1748832633211,-430.0,0.00017996,2]
[363707662,1748832633221,-435.24408975,0.00017996,2]
[363707663,1748832633232,-440.35050286,0.00017996,2]
[363707664,1748832633243,-430.0,0.00017996,2]
[363707665,1748832633254,-1076.91,0.00017996,2]
[363707666,1748832633265,-430.0,0.00017996,2]
[363707667,1748832633276,-444.74086918,0.00017996,2]
[363707668,1748832633286,-430.0,0.00017996,2]
[363707669,1748832633296,-564.53,0.00017996,2]
[363707670,1748832633306,-198.55855298,0.00017996,2]
[363707671,1748832633325,-251.10852916,0.00017996,2]
[363707672,1748832633335,-431.05896033,0.00017996,2]
[363707673,1748832633345,-430.0,0.00017996,2]
[363707674,1748832633356,-430.0,0.00017996,2]
[363707675,1748832633367,-430.0,0.00017996,2]
[363707676,1748832633379,-437.61636875,0.00017996,2]
[363707677,1748832633389,-430.0,0.00017996,2]
[363707678,1748832633399,-430.0,0.00017996,2]
[363707679,1748832633407,-430.0,0.00017996,2]
[363707681,1748832633417,-877.74,0.00017996,2]
[363707683,1748832633428,-430.0,0.00017996,2]
[363707685,1748832633439,-430.0,0.00017996,2]
[363707687,1748832633449,-444.69846883,0.00017996,2]
[363707688,1748832633459,-430.0,0.00017996,2]
[363707689,1748832633469,-430.0,0.00017996,2]
[363707691,1748832633480,-430.0,0.00017996,2]
[363707692,1748832633490,-430.0,0.00017996,2]
[363707693,1748832633500,-487.40708577,0.00017997,2]
[363707694,1748832633510,-484.10940813,0.00017997,2]
[363707695,1748832633520,-474.05664456,0.00017997,2]
[363707696,1748832633530,-460.08688645,0.00017997,2]
[363707697,1748832633540,-430.0,0.00017997,2]
[363707698,1748832633550,-467.60029577,0.00017997,2]
[363707699,1748832633561,-430.0,0.00017997,2]
[363707700,1748832633572,-430.0,0.00017997,2]
[363707701,1748832633584,-430.0,0.00017997,2]
[363707702,1748832633598,-456.89532061,0.00017997,2]
[363707703,1748832633609,-439.98511751,0.00017997,2]
[363707704,1748832633619,-450.30894739,0.00017997,2]
[363707705,1748832633631,-430.0,0.00017997,2]
[363707706,1748832633641,-430.0,0.00017997,2]
[363707707,1748832633651,-440.6610566,0.00017997,2]
[363707708,1748832633662,-435.23678653,0.00017997,2]
[363707709,1748832633673,-430.0,0.00017997,2]
[363707710,1748832633684,-435.56880939,0.00017997,2]
[363707711,1748832633694,-437.10046556,0.00017997,2]
[363707712,1748832633704,-430.0,0.00017997,2]
[363707713,1748832633714,-430.0,0.00017997,2]
[363707714,1748832633724,-443.92680177,0.00017997,2]
[363707715,1748832633735,-430.0,0.00017997,2]
[363707716,1748832633745,-470.30638187,0.00017997,2]
[363707717,1748832633755,-406.2027789,0.00017997,2]
[363707718,1748832633765,-439.439182,0.00017997,2]
[363707719,1748832633775,-430.0,0.00017997,2]
[363707720,1748832633785,-430.0,0.00017997,2]
[363707721,1748832633795,-303.4,0.00017997,2]
[363707722,1748832633805,-430.0,0.00017997,2]
[363707723,1748832633817,-430.0,0.00017997,2]
[363707724,1748832633829,-537.14975611,0.00017997,2]
[363707725,1748832633840,-440.00093728,0.00017997,2]
[363707726,1748832633852,-450.39889254,0.00017997,2]
[363707727,1748832633863,-459.92196767,0.00017997,2]
[363707728,1748832633874,-443.47904261,0.00017997,2]
[363707729,1748832633886,-437.88145489,0.00017997,2]
[363707730,1748832633896,-445.93605186,0.00017997,2]
[363707731,1748832633906,-430.0,0.00017997,2]
[363707732,1748832633917,-430.0,0.00017997,2]
[363707733,1748832633927,-1000.0,0.00017997,2]
[363707734,1748832633937,-1000.0,0.00017997,2]
[363707735,1748832633947,-430.0,0.00017997,2]
[363707736,1748832633957,-235.27453746,0.00017997,2]
[363707737,1748832633967,-430.0,0.00017997,2]
[363707738,1748832633977,-1000.0,0.00017998,2]
[363707739,1748832633987,-848.3953711,0.00017998,2]
[363707740,1748832633997,-308.10309513,0.00017999,2]
[363707741,1748832634006,-430.0,0.00017999,2]
[363707742,1748832634016,-500.0,0.00017999,2]
[363707743,1748832634024,-433.03679371,0.00017999,2]
[363707744,1748832634034,-441.63766627,0.00017999,2]
[363707745,1748832634043,-445.06998368,0.00017999,2]
[363707746,1748832634053,-430.0,0.00017999,2]
[363707747,1748832634064,-434.04102995,0.00017999,2]
[363707748,1748832634074,-430.0,0.00017999,2]
[363707749,1748832634084,-503.31982212,0.00017999,2]
[363707750,1748832634094,-500.0,0.00017999,2]
[363707751,1748832634104,-444.13384844,0.00017999,2]
[363707752,1748832634114,-430.0,0.00017999,2]
[363707753,1748832634124,-430.0,0.00017999,2]
[363707754,1748832634134,-430.0,0.00017999,2]
[363707755,1748832634144,-430.0,0.00017999,2]
[363707756,1748832634154,-442.26149166,0.00017999,2]
[363707757,1748832634164,-151.0,0.00018042,2]
[363707758,1748832634173,-151.0,0.00018042,2]
[363707759,1748832634183,-151.0,0.00018069,2]
[363707760,1748832634193,-151.0,0.00018097,2]
[363707761,1748832634203,-216.01761068,0.00018124,2]
[363707762,1748832634213,-430.0,0.0001827,2]
[363707763,1748832634224,-430.0,0.0001827,2]
[363707764,1748832634234,-430.0,0.0001827,2]
[363707765,1748832634243,-430.0,0.0001827,2]
[363707766,1748832634253,-430.0,0.0001827,2]
[363707767,1748832634264,-430.0,0.0001827,2]
[363707768,1748832634274,-430.0,0.0001827,2]
[363707769,1748832634283,-430.0,0.0001827,2]
[363707770,1748832634293,-430.0,0.0001827,2]
[363707771,1748832634303,-1076.91,0.0001827,2]
[363707772,1748832634313,-430.0,0.0001827,2]
[363707773,1748832634324,-430.0,0.0001827,2]
[363707774,1748832634346,-564.53,0.0001827,2]
[363707775,1748832634358,-430.0,0.0001827,2]
[363707776,1748832634369,-430.0,0.0001827,2]
[363707777,1748832634380,-877.74,0.0001827,2]
[363707778,1748832634390,-430.0,0.0001827,2]
[363707779,1748832634400,-430.0,0.0001827,2]
[363707780,1748832634410,-430.0,0.00018271,2]
[363707781,1748832634420,-430.0,0.00018271,2]
[363707782,1748832634432,-1896.33667063,0.00018412,2]
[363707783,1748832634442,-430.0,0.00018544,2]
[363707784,1748832634453,-430.0,0.00018544,2]
[363707785,1748832634463,-430.0,0.00018544,2]
[363707786,1748832634474,-430.0,0.00018544,2]
[363707787,1748832634484,-430.0,0.00018544,2]
[363707788,1748832634494,-430.0,0.00018544,2]
[363707789,1748832634504,-430.0,0.00018544,2]
[363707790,1748832634514,-430.0,0.00018544,2]
[363707791,1748832634525,-401.81454006,0.00018544,2]
[363707813,1748832638783,-675.09545994,0.00018544,2]
[363707814,1748832638793,-430.0,0.00018544,2]
[363707815,1748832638804,-430.0,0.00018544,2]
[363707816,1748832638814,-564.53,0.00018544,2]
[363707817,1748832638824,-430.0,0.00018544,2]
[363707818,1748832638835,-430.0,0.00018544,2]
[363707819,1748832638845,-877.74,0.00018544,2]
[363707820,1748832638855,-430.0,0.00018544,2]
[363707821,1748832638865,-430.0,0.00018544,2]
[363707822,1748832638875,-430.0,0.00018545,2]
[363707823,1748832638885,-430.0,0.00018545,2]
[363707824,1748832638896,-430.0,0.00018818,2]
[363707825,1748832638912,-430.0,0.00018818,2]
[363707826,1748832638922,-430.0,0.00018818,2]
[363707827,1748832638932,-430.0,0.00018818,2]
[363707828,1748832638942,-430.0,0.00018818,2]
[363707829,1748832638951,-430.0,0.00018818,2]
[363707830,1748832638959,-430.0,0.00018818,2]
[363707831,1748832638966,-430.0,0.00018818,2]
[363707832,1748832638973,-1076.91,0.00018818,2]
[363707834,1748832638981,-430.0,0.00018818,2]
[363707835,1748832638990,-430.0,0.00018818,2]
[363707837,1748832638999,-564.53,0.00018818,2]
[363707839,1748832639012,-430.0,0.00018818,2]
[363707841,1748832639022,-430.0,0.00018818,2]
[363707843,1748832639032,-877.74,0.00018818,2]
[363707845,1748832639041,-430.0,0.00018818,2]
[363707847,1748832639051,-430.0,0.00018818,2]
[363707849,1748832639061,-430.0,0.00018819,2]
[363707851,1748832639071,-430.0,0.00018819,2]
[363707853,1748832639081,-500.0,0.00018887,2]
[363707855,1748832639093,-375.09349634,0.000189,2]
[363707857,1748832639103,-894.54886728,0.000189,2]
[363707859,1748832639113,-894.54886701,0.00019072,2]
[363707861,1748832639122,-430.0,0.00019092,2]
[363707863,1748832639132,-430.0,0.00019092,2]
[363707865,1748832639142,-430.0,0.00019092,2]
[363707867,1748832639151,-430.0,0.00019092,2]
[363707869,1748832639161,-430.0,0.00019092,2]
[363707871,1748832639171,-430.0,0.00019092,2]
[363707873,1748832639181,-430.0,0.00019092,2]
[363707875,1748832639191,-430.0,0.00019092,2]
[363707877,1748832639202,-1076.91,0.00019092,2]
[363707879,1748832639214,-430.0,0.00019092,2]
[363707881,1748832639225,-523.48445327,0.00019092,2]
[363707883,1748832639236,-564.53,0.00019092,2]
[363707885,1748832639247,-430.0,0.00019092,2]
[363707887,1748832639258,-430.0,0.00019092,2]
[363707889,1748832639269,-877.74,0.00019092,2]
[363707891,1748832639280,-430.0,0.00019092,2]
[363707893,1748832639291,-430.0,0.00019092,2]
[363707895,1748832639304,-430.0,0.00019093,2]
[363707897,1748832639315,-430.0,0.00019093,2]
[363707899,1748832639326,-628.1711281,0.00019238,2]
[363707901,1748832639342,-894.54886701,0.00019245,2]
[363707903,1748832639358,-430.0,0.00019366,2]
[363707905,1748832639369,-430.0,0.00019366,2]
[363707907,1748832639382,-430.0,0.00019366,2]
[363707908,1748832639394,-191.13964037,0.00019366,2]
[363707910,1748832639408,-238.86035963,0.00019366,2]
[363707911,1748832639418,-430.0,0.00019366,2]
[363707912,1748832639429,-430.0,0.00019366,2]
[363707913,1748832639440,-430.0,0.00019366,2]
[363707914,1748832639450,-452.3,0.00019366,2]
[363707915,1748832639461,-1076.91,0.00019366,2]
[363707916,1748832639474,-430.0,0.00019366,2]
[363707917,1748832639486,-564.53,0.00019366,2]
[363707918,1748832639497,-430.0,0.00019366,2]
[363707919,1748832639508,-430.0,0.00019366,2]
[363707920,1748832639518,-877.74,0.00019366,2]
[363707921,1748832639529,-430.0,0.00019366,2]
[363707922,1748832639540,-430.0,0.00019366,2]
[363707923,1748832639550,-430.0,0.00019367,2]
[363707924,1748832639560,-430.0,0.00019367,2]
[363707925,1748832639571,-150.82860095,0.00019391,2]
[363707926,1748832639584,-894.54886701,0.00019417,2]
[363707927,1748832639609,-78.7724899,0.00019586,2]
[363707928,1748832639622,-440.58659284,0.00019586,2]
[363707929,1748832639632,-894.54886701,0.0001959,2]
[363707930,1748832639643,-212.83419937,0.00019613,2]
[363707931,1748832639655,-160.0,0.00019613,2]
[363707932,1748832639665,-304.95226028,0.00019614,2]
[363707933,1748832639678,-537.61023972,0.00019614,2]
[363707934,1748832639688,-160.0,0.00019614,2]
[363707935,1748832639699,-160.0,0.00019614,2]
[363707936,1748832639709,-144.76556929,0.00019614,2]
[363707937,1748832639722,-84.63243009,0.00019614,2]
[363707938,1748832639733,-160.0,0.00019614,2]
[363707939,1748832639743,-160.0,0.00019614,2]
[363707940,1748832639753,-423.56953423,0.00019614,2]
[363707941,1748832639763,-241.35,0.00019618,3]
[363707942,1748832639774,-249.67,0.00019618,3]
[363707943,1748832639783,-749.03,0.00019618,3]
[363707944,1748832639794,-480.69,0.00019618,3]
[363707945,1748832639804,-12668.79298183,0.00019628,2]
[363707946,1748832639814,-640.9,0.0001963,3]
[363707947,1748832639825,-420.0,0.00019635,2]
[363707948,1748832639835,-420.0,0.00019635,2]
[363707949,1748832639851,-430.0,0.0001964,2]
[363707950,1748832639861,-430.0,0.0001964,2]
[363707951,1748832639872,-430.0,0.0001964,2]
[363707952,1748832639883,-430.0,0.0001964,2]
[363707953,1748832639893,-430.0,0.0001964,2]
[363707954,1748832639903,-430.0,0.0001964,2]
[363707955,1748832639914,-430.0,0.0001964,2]
[363707956,1748832639925,-1076.91,0.0001964,2]
[363707957,1748832639935,-430.0,0.0001964,2]
[363707958,1748832639945,-564.53,0.0001964,2]
[363707959,1748832639954,-430.0,0.0001964,2]
[363707960,1748832639964,-430.0,0.0001964,2]
[363707961,1748832639974,-877.74,0.0001964,2]
[363707962,1748832639984,-430.0,0.0001964,2]
[363707963,1748832639993,-430.0,0.0001964,2]
[363707964,1748832640003,-430.0,0.00019641,2]
[363707965,1748832640013,-430.0,0.00019641,2]
[363707966,1748832640022,-169.079,0.00019649,2]
[363707967,1748832640032,-1000.0,0.00019754,7]
[363707968,1748832640042,-894.54886701,0.00019762,2]
[363707969,1748832640051,-589.83,0.00019873,2]
[363707970,1748832640061,-4861.76185783,0.00019899,2]
[363707971,1748832640071,-430.0,0.00019914,2]
[363707972,1748832640082,-430.0,0.00019914,2]
[363707973,1748832640097,-312.12,0.00019914,2]
[363707974,1748832640106,-430.0,0.00019914,2]
[363707975,1748832640116,-278.45,0.00019914,2]
[363707976,1748832640126,-430.0,0.00019914,2]
[363707977,1748832640136,-430.0,0.00019914,2]
[363707978,1748832640146,-1076.91,0.00019914,2]
[363707979,1748832640156,-430.0,0.00019914,2]
[363707980,1748832640166,-564.53,0.00019914,2]
[363707981,1748832640176,-430.0,0.00019914,2]
[363707983,1748832640186,-430.0,0.00019914,2]
[363707984,1748832640195,-877.74,0.00019914,2]
[363707985,1748832640205,-430.0,0.00019914,2]
[363707986,1748832640216,-430.0,0.00019914,2]
[363707987,1748832640227,-430.0,0.00019915,2]
[363707988,1748832640237,-306.16,0.00019915,2]
[363707989,1748832640247,-894.54886701,0.00019934,2]
[363707990,1748832640257,-3552.332948,0.00019999,2]
[363707991,1748832640268,-500.0,0.00019999,2]
[363707992,1748832640279,-1026.07381474,0.00019999,2]
[363707993,1748832640289,-500.0,0.00019999,2]
[363707994,1748832640299,-1026.07381474,0.00019999,2]
[363707996,1748832640310,-500.0,0.00019999,2]
[363707998,1748832640321,-500.0,0.00019999,2]
[363708000,1748832640331,-1026.07381474,0.00019999,2]
[363708002,1748832640347,-1026.07381474,0.00019999,2]
[363708004,1748832640358,-1026.07381474,0.00019999,2]
[363708006,1748832640368,-591.98096313,0.00019999,2]
[363708008,1748832640379,-1026.07381474,0.00019999,2]
[363708010,1748832640389,-1026.07381474,0.00019999,2]
[363708012,1748832640399,-1026.07381474,0.00019999,2]
[363708014,1748832640410,-1026.07381474,0.00019999,2]
[363708016,1748832640420,-1026.07381474,0.00019999,2]
[363708018,1748832640431,-500.0,0.00019999,2]
[363708020,1748832640441,-1026.07381474,0.00019999,2]
[363708022,1748832640451,-500.0,0.00019999,2]
[363708024,1748832640461,-500.0,0.00019999,2]
[363708026,1748832640471,-1026.07381474,0.00019999,2]
[363708028,1748832640481,-1026.07381474,0.00019999,2]
[363708030,1748832640491,-1026.07381474,0.00019999,2]
[363708032,1748832640501,-332.24103718,0.00019999,2]
[363708034,1748832640510,-1026.07381474,0.00019999,2]
[363708036,1748832640520,-500.0,0.00019999,2]
[363708038,1748832640529,-500.0,0.00019999,2]
[363708040,1748832640540,-1026.07381474,0.00019999,2]
[363708042,1748832640549,-500.0,0.00019999,2]
[363708044,1748832640559,-1065.82028341,0.00019999,2]
[363708046,1748832640569,-1065.82028341,0.00019999,2]
[363708048,1748832640578,-350.0,0.00019999,2]
[363708050,1748832640593,-1065.82028341,0.00019999,2]
[363708052,1748832640604,-500.0,0.00019999,2]
[363708054,1748832640614,-1065.82028341,0.00019999,2]
[363708056,1748832640623,-1065.82028341,0.00019999,2]
[363708057,1748832640632,-1065.82028341,0.00019999,2]
[363708060,1748832640641,-1065.82028341,0.00019999,2]
[363708062,1748832640651,-1065.82028341,0.00019999,2]
[363708064,1748832640661,-1065.82028341,0.00019999,2]
[363708065,1748832640671,-1065.82028341,0.00019999,2]
[363708067,1748832640681,-1065.82028341,0.00019999,2]
[363708069,1748832640691,-382.27755562,0.00019999,2]
[363708073,1748832640701,-300.0,0.00019999,2]
[363708074,1748832640710,-600.0,0.00019999,2]
[363708077,1748832640721,-300.0,0.00019999,2]
[363708079,1748832640730,-458.57133193,0.00019999,2]
[363708081,1748832640740,-172419.61221295,0.0002,2]
[363708083,1748832640753,-1009.13986329,0.0002,2]
[363708085,1748832640764,-2320.95596561,0.0002,2]
[363708087,1748832640776,-594.98404894,0.0002,2]
[363708089,1748832640788,-561.84778779,0.0002,2]
[363708092,1748832640800,-1036.8367471,0.0002,2]
[363708094,1748832640812,-752.55185998,0.0002,2]
[363708096,1748832640823,-4272.6090822,0.0002,2]
[363708098,1748832640834,-397.89386563,0.0002,2]
[363708100,1748832640849,-2627.63200419,0.0002,2]
[363708103,1748832640866,-244454.66097769,0.0002,2]
[363708105,1748832640877,-894.54886701,0.00020107,2]
[363708107,1748832640887,-900.0,0.00020129,2]
[363708109,1748832640897,-199.979597,0.00020187,2]
[363708111,1748832640907,-430.0,0.00020188,2]
[363708113,1748832640917,-430.0,0.00020188,2]
[363708115,1748832640927,-430.0,0.00020188,2]
[363708117,1748832640936,-430.0,0.00020188,2]
[363708119,1748832640946,-430.0,0.00020188,2]
[363708121,1748832640956,-1076.91,0.00020188,2]
[363708123,1748832640965,-430.0,0.00020188,2]
[363708125,1748832640975,-564.53,0.00020188,2]
[363708127,1748832640984,-389.3,0.00020188,2]
[363708129,1748832640993,-430.0,0.00020188,2]
[363708131,1748832641003,-877.74,0.00020188,2]
[363708133,1748832641012,-430.0,0.00020188,2]
[363708135,1748832641022,-215.75599337,0.00020188,2]
[363708137,1748832641032,-430.0,0.00020189,2]
[363708139,1748832641041,-894.54886701,0.00020279,3]
[363708141,1748832641051,-894.54886701,0.00020452,3]
[363708143,1748832641060,-430.0,0.00020462,2]
[363708145,1748832641070,-430.0,0.00020462,2]
[363708147,1748832641080,-186.63955509,0.00020462,2]
[363708149,1748832641093,-430.0,0.00020462,2]
[363708151,1748832641103,-430.0,0.00020462,2]
[363708153,1748832641113,-1076.91,0.00020462,2]
[363708155,1748832641123,-430.0,0.00020462,2]
[363708157,1748832641132,-564.53,0.00020462,2]
[363708159,1748832641142,-430.0,0.00020462,2]
[363708161,1748832641151,-877.74,0.00020462,2]
[363708163,1748832641161,-430.0,0.00020462,2]
[363708165,1748832641171,-430.0,0.00020463,2]
[363708167,1748832641181,-953.26,0.00020547,2]
[363708169,1748832641191,-4861.7618578,0.00020574,2]
[363708171,1748832641201,-4542.74,0.000206,2]
[363708173,1748832641211,-39345.73,0.000206,2]
[363708176,1748832641221,-1601.72,0.000206,2]
[363708177,1748832641231,-894.54886701,0.00020624,3]
[363708179,1748832641240,-430.0,0.00020736,2]
[363708181,1748832641250,-430.0,0.00020736,2]
[363708183,1748832641260,-430.0,0.00020736,2]
[363708185,1748832641269,-430.0,0.00020736,2]
[363708187,1748832641279,-1076.91,0.00020736,2]
[363708189,1748832641289,-430.0,0.00020736,2]
[363708191,1748832641299,-564.53,0.00020736,2]
[363708193,1748832641309,-430.0,0.00020736,2]
[363708195,1748832641319,-877.74,0.00020736,2]
[363708197,1748832641328,-430.0,0.00020736,2]
[363708199,1748832641342,-430.0,0.00020737,2]
[363708201,1748832641352,-894.54886701,0.00020797,4]
[363708203,1748832641362,-150.82860095,0.00020887,2]
[363708205,1748832641372,-894.54886701,0.00020969,4]
[363708207,1748832641382,-482.7,0.00020988,3]
[363708209,1748832641393,-499.34,0.00020988,3]
[363708211,1748832641403,-430.0,0.0002101,2]
[363708213,1748832641413,-430.0,0.0002101,2]
[363708214,1748832641423,-430.0,0.0002101,2]
[363708216,1748832641433,-430.0,0.0002101,2]
[363708218,1748832641444,-1076.91,0.0002101,2]
[363708220,1748832641453,-430.0,0.0002101,2]
[363708221,1748832641463,-564.53,0.0002101,2]
[363708222,1748832641473,-430.0,0.0002101,2]
[363708223,1748832641483,-877.74,0.0002101,2]
[363708224,1748832641493,-379.96,0.0002101,2]
[363708225,1748832641504,-430.0,0.00021011,2]
[363708226,1748832641514,-953.26,0.00021095,3]
[363708227,1748832641524,-894.54886701,0.00021141,4]
[363708228,1748832641534,-900.0,0.00021225,2]
[363708229,1748832641544,-4861.7618578,0.0002125,2]
[363708230,1748832641553,-430.0,0.00021284,2]
[363708231,1748832641680,-373.78,0.00021284,2]
[363708232,1748832641691,-430.0,0.00021284,2]
[363708233,1748832641701,-201.03,0.00021284,2]
[363708234,1748832641712,-1076.91,0.00021284,2]
[363708235,1748832641723,-430.0,0.00021284,2]